[Event "European Women Rapid-ch 2023"]
[Site "Monaco"]
[Date "2024.01.13"]
[Round "5.16"]
[White "Garcia Martin, Marta"]
[Black "Cramling, Pia"]
[Result "1-0"]
[ECO "B22"]
[WhiteElo "2342"]
[BlackElo "2437"]
[Annotator "TA"]
[PlyCount "135"]
[EventDate "2023.12.19"]
[EventType "swiss"]
[EventCountry "MNC"]
[SourceTitle "playchess.com"]
[Source "ChessBase"]
[SourceQuality "1"]
[TimeControl "900+10"]

{[%evp 45,135,215,221,222,245,254,276,107,280,239,327,272,286,267,344,345,430,428,465,470,465,451,483,483,450,372,353,365,379,368,623,596,653,332,325,322,517,517,514,502,425,372,402,365,366,0,431,411,535,472,509,515,656,639,566,482,465,458,554,535,630,563,874,871,895,903,916,901,1428,1416,1271,1334,1518,1493,1291,1103,2740,2008,29976,29975,29978,29979,29979,29980,29981,29982,29982,29980,29982,29982,29979,29980]} 1. e4 {[%emt 0:00:02]} c5 {[%emt 0:00:01]} 2. Nf3 {[%emt 0:00:07]} e6 {[%emt 0:00:02]} 3. c3 {[%emt 0:00:18]} d5 {[%emt 0:00:32]} 4. exd5 {[%emt 0:00:02]} Qxd5 {[%emt 0:00:02]} 5. Na3 {[%emt 0:00:29]} Nf6 {[%emt 0:00:25]} 6. d4 {[%emt 0:01:11]} cxd4 {[%emt 0:00:33]} 7. Nb5 {[%emt 0:00:01]} Qd8 {[%emt 0:00:10]} 8. Nbxd4 {[%emt 0:00:11]} Be7 {[%emt 0:00:18]} 9. Bd3 {[%emt 0:00:04]} O-O {[%emt 0:01:09] B22: Sicilian: 2 c3.} 10. O-O {[%emt 0:00:56]} Nbd7 {[%emt 0:00:51]} 11. Qe2 {[%emt 0:00:27]} Nc5 {[%emt 0:01:57]} 12. Bc2 {[%emt 0:00:03]} Qc7 {[%emt 0:00:19]} 13. Ne5 {[%emt 0:00:26]} Nd5 $146 {[%emt 0:00:24]} ({Predecessor:} 13... Bd7 14. Bf4 Qc8 15. Rad1 Be8 16. Rfe1 a5 17. Nc4 Ra6 18. Bg3 Nce4 19. Be5 b5 {1-0 Antonio,R (2478)-Pacis,A (2254) Olongapo City Puregold op 2015 (1)}) 14. Re1 {[%emt 0:00:23]} Bd7 {[%emt 0:00:29]} 15. Qh5 {[%emt 0:00:47]} g6 {[%emt 0:01:46]} 16. Qh3 {[%emt 0:02:42]} Bd6 {[%emt 0:00:11]} 17. Ndf3 {[%emt 0:00:08]} Be8 {[%emt 0:02:18]} 18. Bh6 {[%emt 0:00:12]} f6 {[%emt 0:00:35]} 19. Bxf8 {[%emt 0:00:36]} Bxf8 {[%emt 0:00:01]} 20. b4 {[%emt 0:03:09]} fxe5 {[%emt 0:00:57]} 21. bxc5 {[%emt 0:00:09]} Nf4 {[%emt 0:00:02]} 22. Qg4 {[%emt 0:01:24]} Bg7 {[%emt 0:01:23]} 23. g3 {[%emt 0:01:09]} h5 {[%emt 0:00:19]} 24. Qh4 {[%emt 0:00:01]} Nd5 {[%emt 0:00:31]} 25. Bb3 {[%emt 0:01:12]} Bf7 {[%emt 0:01:28]} 26. c4 $2 {[%emt 0:01:12]} (26. Rac1 $18) 26... Nb4 $2 {[%emt 0:00:14]} (26... Bf6 $16 27. Qe4 Nc3) 27. Qe4 {[%emt 0:00:08]} Nc6 {[%emt 0:00:30]} 28. Rad1 {[%emt 0:00:03]} Nd4 {[%emt 0:00:17]} 29. Rd3 {[%emt 0:01:26]} (29. Nxe5 Qxe5 30. Qxb7 Qb8 $15 (30... Rb8 31. Qxa7 Nc6 32. Rxe5 $16)) 29... Rd8 {[%emt 0:00:14]} 30. Kf1 {[%emt 0:00:48]} ({Less strong is} 30. Nxe5 Bxe5 31. Qxe5 Qxe5 32. Rxe5 Ne2+ 33. Kf1 (33. Rxe2 Rxd3 34. Kf1 g5 $16) 33... Rxd3 $18) 30... Nc6 {[%emt 0:00:26]} 31. Rxd8+ {[%emt 0:00:08]} Qxd8 {[%emt 0:00:02]} 32. Ba4 {[%emt 0:00:12]} Be8 {[%emt 0:00:31]} 33. Rd1 {[%emt 0:00:01]} Qe7 {[%emt 0:00:53]} 34. Rd6 {[%emt 0:00:11]} Qf6 {[%emt 0:00:18]} 35. h4 {[%emt 0:00:23]} Bf8 {[%emt 0:00:04]} 36. Rd2 {[%emt 0:00:13]} Bxc5 {[%emt 0:00:10]} 37. Ng5 {[%emt 0:00:13]} Bb4 $2 {[%emt 0:00:41]} (37... Bb6 38. Qb1 Qf5) 38. Rb2 $18 {[%emt 0:00:08]} Bc5 {[%emt 0:00:03]} 39. Qf3 {[%emt 0:00:10]} (39. Rxb7 $2 Qxf2#) 39... Qxf3 {[%emt 0:00:02]} 40. Nxf3 {[%emt 0:00:00]} e4 $2 {[%emt 0:00:03]} (40... b6 {was necessary.} 41. Re2 Bd6 42. Bxc6 Bxc6) 41. Ng5 $18 {[%emt 0:00:05]} b6 {[%emt 0:00:32]} 42. Nxe4 {[%emt 0:00:14]} Be7 {[%emt 0:00:10]} 43. Rd2 {[%emt 0:00:10]} Kf8 {[%emt 0:00:09]} 44. Nd6 {[%emt 0:00:05]} Bd7 {[%emt 0:00:07]} 45. Ne4 {[%emt 0:00:20]} Be8 {[%emt 0:00:02]} 46. Ng5 {[%emt 0:00:16]} Bxg5 {[%emt 0:00:07]} 47. hxg5 {[%emt 0:00:01]} Ke7 {[%emt 0:00:01]} 48. f4 {[%emt 0:00:20]} Na5 {[%emt 0:00:24]} 49. Bxe8 {[%emt 0:00:03]} Kxe8 {[%emt 0:00:01]} 50. Rd4 {[%emt 0:00:06]} Ke7 {[%emt 0:00:04]} 51. Ke2 {[%emt 0:00:06]} Nb7 {[%emt 0:00:22]} 52. Kf3 {[%emt 0:00:12]} Nc5 {[%emt 0:00:05]} 53. g4 {[%emt 0:00:08]} hxg4+ {[%emt 0:00:09]} 54. Kxg4 {[%emt 0:00:01]} Nb7 {[%emt 0:00:23]} 55. Rd1 {[%emt 0:00:26]} Nd6 {[%emt 0:00:17]} 56. Rh1 {[%emt 0:00:11]} Nxc4 {[%emt 0:00:09]} 57. Rh7+ {[%emt 0:00:01]} Kd6 {[%emt 0:00:02]} 58. Rxa7 {[%emt 0:00:02]} Ne3+ {[%emt 0:00:18]} 59. Kf3 {[%emt 0:00:01]} Nf5 {[%emt 0:00:01]} 60. Ra8 {[%emt 0:00:10]} e5 {[%emt 0:00:19]} 61. Rb8 {[%emt 0:00:39]} exf4 {[%emt 0:00:13]} 62. Kxf4 {[%emt 0:00:12]} Kc7 {[%emt 0:00:01]} 63. Rf8 {[%emt 0:00:08]} Ne7 {[%emt 0:00:03]} 64. Ke5 {[%emt 0:00:03]} Kd7 {[%emt 0:00:04]} 65. Rf7 {[%emt 0:00:05]} Ke8 {[%emt 0:00:13]} 66. Ke6 {[%emt 0:00:22]} Nc6 {[%emt 0:00:16]} 67. Rc7 {[%emt 0:00:09]} Nd4+ {[%emt 0:00:10]} 68. Kf6 {[%emt 0:00:02]} 1-0

[Event "European Women Rapid-ch 2023"]
[Site "Monaco"]
[Date "2024.01.13"]
[Round "5.17"]
[White "Sliwicka, Alicja"]
[Black "Zhukova, Natalia"]
[Result "1-0"]
[ECO "C02"]
[WhiteElo "2311"]
[BlackElo "2301"]
[Annotator "TA"]
[PlyCount "85"]
[EventDate "2023.12.19"]
[EventType "swiss"]
[EventCountry "MNC"]
[SourceTitle "playchess.com"]
[Source "ChessBase"]
[SourceQuality "1"]
[TimeControl "900+10"]

{[%evp 13,85,0,73,75,73,79,75,64,79,56,52,4,0,31,113,114,240,238,242,243,241,200,194,204,204,208,202,192,210,215,229,229,235,216,241,208,207,207,209,104,224,218,329,322,337,269,263,84,218,224,705,712,703,700,771,774,771,764,897,897,854,845,864,877,983,960,962,896,884,790,1039,1037,1168,1163]} 1. e4 {[%emt 0:00:02]} e6 {[%emt 0:01:08]} 2. d4 {[%emt 0:00:02]} d5 {[%emt 0:00:02]} 3. e5 {[%emt 0:00:01]} c5 {[%emt 0:00:02]} 4. c3 {[%emt 0:00:02]} Nc6 {[%emt 0:00:02]} 5. Nf3 {[%emt 0:00:01]} Bd7 {[%emt 0:00:02]} 6. Bd3 {[%emt 0:00:08]} Rc8 {[%emt 0:01:31]} 7. O-O {[%emt 0:00:17]} Qb6 {[%emt 0:00:06] [#]} (7... cxd4 $11 8. cxd4 Nb4) 8. dxc5 $1 $16 {[%emt 0:00:08]} Bxc5 {[%emt 0:00:09]} 9. b4 {[%emt 0:00:16]} Be7 {[%emt 0:00:08]} 10. a4 {[%emt 0:00:31] White is better.} Nh6 {[%emt 0:02:15]} 11. Na3 {[%emt 0:01:25]} Ng4 {[%emt 0:06:38]} 12. Qe2 {[%emt 0:00:03]} (12. a5 $14 Qc7 13. Nb5) 12... f6 $1 $11 {[%emt 0:00:42]} 13. exf6 {[%emt 0:01:13]} Nxf6 {[%emt 0:00:40]} ({Black should try} 13... Bxf6 $14 14. Bg5 Nce5) 14. Ng5 $36 {[%emt 0:00:38][%mdl 2048] White has strong initiative.} Nd8 {[%emt 0:02:04]} (14... e5 $16 {keeps fighting.}) 15. Be3 $18 {[%emt 0:00:43]} Qc7 {[%emt 0:01:12]} 16. Nb5 {[%emt 0:00:02]} ({Stronger than} 16. Bxa7 Qxc3 17. Nb5 Qxb4 $11) 16... Qb8 {[%emt 0:00:32]} 17. Bxa7 {[%emt 0:00:10]} Qf4 {[%emt 0:00:05]} 18. Be3 {[%emt 0:00:12]} Qg4 {[%emt 0:00:13] [#]} 19. Nxh7 $1 {[%emt 0:02:50][%mdl 512]} Qxe2 {[%emt 0:00:22]} 20. Nxf6+ {[%emt 0:00:02]} gxf6 {[%emt 0:00:16]} 21. Bxe2 {[%emt 0:00:02]} Nf7 {[%emt 0:00:10]} 22. f4 {[%emt 0:00:17]} Kf8 {[%emt 0:00:10]} 23. Rac1 {[%emt 0:00:27]} Kg7 {[%emt 0:00:06]} 24. c4 {[%emt 0:00:05]} Bxb4 {[%emt 0:00:07]} 25. cxd5 {[%emt 0:00:22]} exd5 {[%emt 0:00:01]} 26. Nc7 {[%emt 0:00:39]} (26. Bf3 $18) 26... Ba5 {[%emt 0:00:34]} (26... Ba3 $16 {was called for.}) 27. Nxd5 {[%emt 0:00:07]} Bc6 {[%emt 0:00:10]} (27... Be6 $142) 28. Ne7 {[%emt 0:00:13]} Rce8 {[%emt 0:00:02]} 29. Nf5+ {[%emt 0:00:18]} Kg6 {[%emt 0:00:00]} 30. Bg4 {[%emt 0:01:57]} (30. Rxc6 $18 bxc6 31. Bd3) 30... Bd7 {[%emt 0:00:14] [#]} (30... Nh6 $16 {was worth a try.} 31. Nxh6 Rxe3) 31. Bf2 $1 {[%emt 0:00:43] Black must now prevent Nh4+.} ({Inferior is} 31. Rc5 Bb6 32. Rc3 Rxe3 33. Nxe3 Bxg4 $11) 31... b6 $2 {[%emt 0:00:17]} (31... Bxa4 32. h3 Ra8) 32. Nh4+ {[%emt 0:00:13] White is clearly winning.} Rxh4 {[%emt 0:00:04]} 33. Bxd7 {[%emt 0:00:01]} Rd8 {[%emt 0:00:12]} 34. Bxh4 {[%emt 0:00:02]} Rxd7 {[%emt 0:00:01]} 35. Rc6 {[%emt 0:00:06]} Rd6 {[%emt 0:00:32]} 36. f5+ {[%emt 0:00:08]} Kg7 {[%emt 0:00:04]} 37. Rxd6 {[%emt 0:00:03]} Nxd6 {[%emt 0:00:02][%mdl 4096] Endgame. KRB-KBN} 38. g4 {[%emt 0:00:04]} Ne4 {[%emt 0:00:18]} 39. Rd1 {[%emt 0:00:06]} Kf7 {[%emt 0:00:15]} 40. Rd7+ {[%emt 0:00:05]} Ke8 {[%emt 0:00:01]} 41. Rh7 {[%emt 0:00:09]} Bc3 {[%emt 0:00:03]} 42. Bf2 {[%emt 0:00:07]} Ng5 {[%emt 0:00:19]} 43. Rb7 {[%emt 0:00:08] Weighted Error Value: White=0.28 (precise) /Black=0.35.  Missed win:     	White=1     	---        Mistake:       	White=2     	Black=6      OK:         	White=10    	Black=9      Best:        	White=4     	---        Strong:       	White=1     	Black=1} 1-0

[Event "European Women Rapid-ch 2023"]
[Site "Monaco"]
[Date "2024.01.13"]
[Round "5.18"]
[White "Bensdorp-De Labaca, Marlies"]
[Black "Gvetadze, Sofio"]
[Result "1/2-1/2"]
[ECO "E70"]
[WhiteElo "2237"]
[BlackElo "2298"]
[Annotator "RC"]
[PlyCount "166"]
[EventDate "2023.12.19"]
[EventType "swiss"]
[EventCountry "MNC"]
[SourceTitle "playchess.com"]
[Source "ChessBase"]
[SourceQuality "1"]
[TimeControl "900+10"]

1. d4 {[%emt 0:00:02]} Nf6 {[%emt 0:00:02]} 2. c4 {[%emt 0:00:01]} g6 {[%emt 0:00:02]} 3. Nc3 {[%emt 0:00:03]} c5 {[%emt 0:00:10]} 4. d5 {[%emt 0:00:03]} Bg7 {[%emt 0:00:02]} 5. e4 {[%emt 0:00:06]} d6 {[%emt 0:00:04]} 6. Bd3 {[%emt 0:00:03]} O-O {[%emt 0:00:05]} 7. Nge2 {[%emt 0:00:02]} Nbd7 {[%emt 0:00:09]} 8. O-O {[%emt 0:00:11]} Ne5 {[%emt 0:00:12]} 9. h3 {[%emt 0:00:10]} a6 {[%emt 0:00:10]} 10. a4 {[%emt 0:00:06]} Rb8 {[%emt 0:00:09]} 11. f4 {[%emt 0:00:20]} Nxd3 {[%emt 0:00:03]} 12. Qxd3 {[%emt 0:00:02]} Bd7 {[%emt 0:00:08]} 13. Bd2 {[%emt 0:00:37]} Ne8 {[%emt 0:00:16]} 14. Ng3 {[%emt 0:00:38]} Nc7 {[%emt 0:00:42]} 15. a5 {[%emt 0:00:34]} b5 {[%emt 0:00:13]} 16. axb6 {[%emt 0:00:02]} Rxb6 {[%emt 0:00:02]} 17. Qc2 {[%emt 0:00:20]} Qb8 {[%emt 0:00:09]} 18. Ra2 {[%emt 0:00:36]} Rb3 {[%emt 0:02:24]} 19. Kh2 {[%emt 0:01:04]} Qb7 {[%emt 0:00:56]} 20. Rf3 {[%emt 0:00:43]} Rb8 {[%emt 0:00:13]} 21. Nd1 {[%emt 0:00:36]} Rxf3 {[%emt 0:00:03]} 22. gxf3 {[%emt 0:00:02]} Qc8 {[%emt 0:00:30]} 23. f5 {[%emt 0:00:15]} Qb7 {[%emt 0:04:15]} 24. Kg2 {[%emt 0:00:17]} Qb3 {[%emt 0:01:10]} 25. Qxb3 {[%emt 0:00:10]} Rxb3 {[%emt 0:00:02]} 26. fxg6 {[%emt 0:00:10]} hxg6 {[%emt 0:00:02]} 27. h4 {[%emt 0:00:38]} Be5 {[%emt 0:00:14]} 28. Ba5 {[%emt 0:01:10]} Ne8 {[%emt 0:00:51]} 29. Nc3 {[%emt 0:01:27]} Bc8 {[%emt 0:00:20]} 30. Nge2 {[%emt 0:00:22]} Nf6 {[%emt 0:00:15]} 31. Nc1 {[%emt 0:00:18]} Rb7 {[%emt 0:00:24]} 32. Nd3 {[%emt 0:00:04]} Bd4 {[%emt 0:00:15]} 33. Ne2 {[%emt 0:00:10]} Be3 {[%emt 0:01:41]} 34. Bc3 {[%emt 0:00:03]} Nh5 {[%emt 0:00:01]} 35. Rxa6 {[%emt 0:00:29]} Rxb2 {[%emt 0:00:07]} 36. Nxb2 {[%emt 0:01:07]} Bxa6 {[%emt 0:00:02]} 37. Kh3 {[%emt 0:00:13]} Nf4+ {[%emt 0:00:07]} 38. Nxf4 {[%emt 0:00:08]} Bxf4 {[%emt 0:00:01]} 39. Kg4 {[%emt 0:00:18]} Bc1 {[%emt 0:00:07]} 40. h5 {[%emt 0:00:35]} gxh5+ {[%emt 0:00:01]} 41. Kxh5 {[%emt 0:00:02]} Bxb2 {[%emt 0:00:06]} 42. Bxb2 {[%emt 0:00:01]} Bxc4 {[%emt 0:00:01]} 43. Kg4 {[%emt 0:00:15]} Kh7 {[%emt 0:00:15]} 44. f4 {[%emt 0:00:15]} Be2+ {[%emt 0:00:27]} 45. Kg3 {[%emt 0:00:08]} Bc4 {[%emt 0:00:48]} 46. f5 {[%emt 0:00:49]} Kg8 {[%emt 0:00:24]} 47. Kf4 {[%emt 0:00:09]} Kf8 {[%emt 0:00:14]} 48. Bc3 {[%emt 0:00:08]} Ke8 {[%emt 0:00:04]} 49. Ke3 {[%emt 0:00:44]} Ba6 {[%emt 0:00:07]} 50. Kd2 {[%emt 0:00:23]} Kd7 {[%emt 0:00:03]} 51. Ba5 {[%emt 0:00:03]} Bf1 {[%emt 0:00:09]} 52. Bc3 {[%emt 0:00:06]} Bc4 {[%emt 0:00:17]} 53. Ba5 {[%emt 0:00:02]} e6 {[%emt 0:00:14]} 54. dxe6+ {[%emt 0:00:04]} fxe6 {[%emt 0:00:01]} 55. fxe6+ {[%emt 0:00:22]} Kxe6 {[%emt 0:00:02]} 56. Bc3 {[%emt 0:00:05]} Bb5 {[%emt 0:00:02]} 57. Ke3 {[%emt 0:00:03]} Bc6 {[%emt 0:00:01]} 58. Bb2 {[%emt 0:00:10]} Ba4 {[%emt 0:00:01]} 59. Bc3 {[%emt 0:00:01]} Bc2 {[%emt 0:00:01]} 60. Bb2 {[%emt 0:00:02]} Bb1 {[%emt 0:00:02]} 61. Bc3 {[%emt 0:00:01]} Kd7 {[%emt 0:00:01]} 62. Bb2 {[%emt 0:00:10]} Kc6 {[%emt 0:00:01]} 63. Ba1 {[%emt 0:00:34]} Kb5 {[%emt 0:00:03]} 64. e5 {[%emt 0:00:02]} d5 {[%emt 0:00:08]} 65. Bb2 {[%emt 0:00:15]} Kc4 {[%emt 0:00:03]} 66. e6 {[%emt 0:00:04]} Bg6 {[%emt 0:00:03]} 67. e7 {[%emt 0:01:19]} d4+ {[%emt 0:00:03]} 68. Kd2 {[%emt 0:00:02]} Kd5 {[%emt 0:00:14]} 69. Ba3 {[%emt 0:00:11]} Kd6 {[%emt 0:00:15]} 70. Ke2 {[%emt 0:00:05]} Bh5+ {[%emt 0:00:09]} 71. Kd3 {[%emt 0:00:01]} Kd5 {[%emt 0:00:01]} 72. Kd2 {[%emt 0:00:23]} Bg6 {[%emt 0:00:07]} 73. Bb2 {[%emt 0:00:46]} Kc4 {[%emt 0:00:03]} 74. Ba3 {[%emt 0:00:03]} Be8 {[%emt 0:00:08]} 75. Bb2 {[%emt 0:00:15]} Bb5 {[%emt 0:00:09]} 76. Ba3 {[%emt 0:00:04]} Ba4 {[%emt 0:00:15]} 77. Bb2 {[%emt 0:00:03]} Kd5 {[%emt 0:00:04]} 78. Ba3 {[%emt 0:00:12]} c4 {[%emt 0:00:01]} 79. Bb2 {[%emt 0:00:01]} Ke4 {[%emt 0:00:07]} 80. Ba1 {[%emt 0:00:49]} Be8 {[%emt 0:00:23]} 81. Bb2 {[%emt 0:00:02]} Kd5 {[%emt 0:00:11]} 82. Ba1 {[%emt 0:00:00]} Kc5 {[%emt 0:00:08]} 83. Bb2 {[%emt 0:00:01]} Kd5 {[%emt 0:00:02]} 1/2-1/2

[Event "European Women Rapid-ch 2023"]
[Site "Monaco"]
[Date "2024.01.13"]
[Round "5.19"]
[White "Kulon, Klaudia"]
[Black "Kubicka, Anna"]
[Result "1-0"]
[ECO "A42"]
[WhiteElo "2323"]
[BlackElo "2278"]
[Annotator "ChessBase"]
[PlyCount "73"]
[EventDate "2023.12.19"]
[EventType "swiss"]
[EventCountry "MNC"]
[SourceTitle "playchess.com"]
[Source "ChessBase"]
[SourceQuality "1"]
[TimeControl "900+10"]

1. c4 {[%emt 0:00:01]} g6 {[%emt 0:00:02]} 2. Nc3 {[%emt 0:00:09]} Bg7 {[%emt 0:00:01]} 3. d4 {[%emt 0:00:04]} d6 {[%emt 0:00:07]} 4. e4 {[%emt 0:00:01]} e5 {[%emt 0:00:15]} 5. dxe5 {[%emt 0:00:18]} dxe5 {[%emt 0:00:04]} 6. Qxd8+ {[%emt 0:00:11]} Kxd8 {[%emt 0:00:02]} 7. Bg5+ {[%emt 0:00:03]} f6 {[%emt 0:00:07]} 8. O-O-O+ {[%emt 0:00:17]} Nd7 {[%emt 0:00:04]} 9. Be3 {[%emt 0:00:03]} c6 {[%emt 0:00:08]} 10. Bc5 {[%emt 0:00:23]} Nh6 {[%emt 0:00:20]} 11. g3 {[%emt 0:00:31]} Nf7 {[%emt 0:00:30]} 12. h4 {[%emt 0:01:40]} Kc7 {[%emt 0:00:37]} 13. Be3 {[%emt 0:00:31]} h5 {[%emt 0:00:10]} 14. Kc2 {[%emt 0:00:08]} Bf8 {[%emt 0:00:56]} 15. a3 {[%emt 0:00:22]} b6 {[%emt 0:00:27]} 16. b4 {[%emt 0:00:08]} a5 {[%emt 0:00:43]} 17. Kb3 {[%emt 0:00:21]} axb4 {[%emt 0:00:13]} 18. axb4 {[%emt 0:00:02]} Bh6 {[%emt 0:03:40]} 19. f4 {[%emt 0:00:04]} Nf8 {[%emt 0:00:34]} 20. b5 {[%emt 0:01:06]} Bb7 {[%emt 0:00:08]} 21. Bh3 {[%emt 0:00:13]} c5 {[%emt 0:01:05]} 22. Nf3 {[%emt 0:01:34]} f5 {[%emt 0:01:38]} 23. Rhe1 {[%emt 0:00:49]} fxe4 {[%emt 0:02:28]} 24. Nxe5 {[%emt 0:00:06]} Nxe5 {[%emt 0:00:14]} 25. fxe5 {[%emt 0:00:01]} Bxe3 {[%emt 0:00:21]} 26. Rxe3 {[%emt 0:00:02]} Re8 {[%emt 0:00:21]} 27. Nd5+ {[%emt 0:00:50]} Bxd5 {[%emt 0:00:02]} 28. cxd5 {[%emt 0:00:11]} Rxe5 {[%emt 0:00:26]} 29. d6+ {[%emt 0:00:01]} Kb8 {[%emt 0:03:59]} 30. d7 {[%emt 0:00:11]} Nxd7 {[%emt 0:00:02]} 31. Bxd7 {[%emt 0:00:11]} Rf8 {[%emt 0:00:15]} 32. Bc6 {[%emt 0:00:15]} Rf3 {[%emt 0:00:04]} 33. Rde1 {[%emt 0:00:04]} c4+ {[%emt 0:00:21]} 34. Kxc4 {[%emt 0:00:13]} Rc5+ {[%emt 0:00:04]} 35. Kd4 {[%emt 0:00:15]} Kc7 {[%emt 0:00:07]} 36. Rxe4 {[%emt 0:00:17]} Rf6 {[%emt 0:00:10]} 37. Re7+ {[%emt 0:00:04]} 1-0

[Event "European Women Rapid-ch 2023"]
[Site "Monaco"]
[Date "2024.01.13"]
[Round "5.20"]
[White "Unuk, Laura"]
[Black "Paasikangas, Johanna"]
[Result "1-0"]
[ECO "D00"]
[WhiteElo "2346"]
[BlackElo "2038"]
[Annotator "TA"]
[PlyCount "101"]
[EventDate "2023.12.19"]
[EventType "swiss"]
[EventCountry "MNC"]
[SourceTitle "playchess.com"]
[Source "ChessBase"]
[SourceQuality "1"]
[TimeControl "900+10"]

{[%evp 9,101,30,39,42,104,98,112,57,64,60,87,82,80,80,83,80,98,94,97,97,135,85,89,41,161,130,186,147,168,150,215,186,172,147,131,148,158,131,139,126,138,143,154,98,111,83,102,96,85,73,169,172,287,121,225,229,387,315,378,384,731,736,776,776,764,763,739,736,939,915,906,888,1270,1378,2419,2228,2055,1649,7300,5397,29973,29972,29988,29989,29989,29990,29989,29990,29990,29989,29991,29991,29992,29993]} 1. d4 {[%emt 0:00:02]} d5 {[%emt 0:00:02]} 2. Bf4 {[%emt 0:00:02]} c5 {[%emt 0:00:13][%cal Bc7c5,Bc5c4][%mdl 32]} 3. e3 {[%emt 0:00:42]} Qb6 {[%emt 0:00:39]} 4. Nc3 {[%emt 0:00:50]} e6 {[%emt 0:00:45]} 5. Nb5 {[%emt 0:00:08]} Na6 {[%emt 0:00:18]} 6. a4 {[%emt 0:00:32]} Qa5+ {[%emt 0:00:30]} (6... Nf6 $14) 7. c3 $16 {[%emt 0:00:09]} c4 {[%emt 0:01:34]} 8. Nd6+ {[%emt 0:03:57]} (8. Nf3 $16) 8... Bxd6 $14 {[%emt 0:00:11]} 9. Bxd6 {[%emt 0:00:02]} Qd8 {[%emt 0:00:24]} 10. Ba3 {[%emt 0:00:19]} Ne7 {[%emt 0:00:06]} 11. b3 {[%emt 0:00:07]} cxb3 {[%emt 0:00:24]} 12. Qxb3 {[%emt 0:00:18]} Nc7 {[%emt 0:01:26] Pariert Qb5+.} 13. Nf3 {[%emt 0:00:14][%cal Bg1f3,Bf3e5,Be5g4][%mdl 32]} O-O {[%emt 0:00:12]} 14. Bd3 {[%emt 0:00:05]} b6 {[%emt 0:00:46]} 15. Qc2 {[%emt 0:01:45] Weiß steht deutlich aktiver. Die schwarzen Türme stehen passiv.} (15. Qb1 $142) 15... h6 $16 {[%emt 0:00:45]} 16. g4 {[%emt 0:00:45]} (16. Qe2 $16) 16... f5 {[%emt 0:03:14]} (16... Ba6 $14) 17. Ne5 {[%emt 0:01:04]} Rf6 {[%emt 0:00:28]} (17... Ba6 $16) 18. h4 {[%emt 0:02:24] Zielt auf g5 ab.} fxg4 {[%emt 0:01:25]} 19. Nxg4 {[%emt 0:01:07]} Rf7 {[%emt 0:00:03]} (19... Nf5 $16 20. Nxf6+ Qxf6) 20. Ne5 {[%emt 0:00:08] Droht Bh7+ und aus.} Rf6 {[%emt 0:00:04]} 21. Bh7+ {[%emt 0:00:15] Ein starkes Läuferpaar. Schwarz hat schwache schwarze Felder} Kh8 {[%emt 0:00:20] [#]} 22. Bxe7 $1 {[%emt 0:00:05]} Qxe7 {[%emt 0:00:03]} 23. Ng6+ {[%emt 0:00:02]} Rxg6 {[%emt 0:00:02]} 24. Bxg6 {[%emt 0:00:02]} ({Doch nicht} 24. Qxg6 $6 e5 $11) 24... e5 {[%emt 0:00:07]} 25. dxe5 {[%emt 0:01:22]} Qxe5 {[%emt 0:00:07]} 26. Rd1 {[%emt 0:00:02]} ({Besser ist} 26. a5) 26... Be6 {[%emt 0:00:19]} 27. Qd3 {[%emt 0:00:26]} Qf6 {[%emt 0:00:10]} 28. h5 {[%emt 0:01:44]} Rf8 {[%emt 0:00:03]} 29. Rd2 {[%emt 0:00:05]} Bd7 {[%emt 0:00:37]} (29... Qg5 $16 {war nötig.}) 30. Qd4 $18 {[%emt 0:00:08] Qxf6 ist eine echte Drohung.} Qc6 {[%emt 0:00:50]} (30... Qg5 $142 31. Qb4 Ne6) 31. Bc2 {[%emt 0:00:13]} (31. Rh4 $18 {ist viel giftiger.}) 31... Be6 {[%emt 0:00:24]} (31... Bf5 $16) 32. Rg1 {[%emt 0:00:04][%csl Gg1][%cal Rd4g7]} Rf6 $2 {[%emt 0:00:23]} (32... Ne8 {war angesagt.} 33. e4 dxe4) 33. f4 {[%emt 0:00:15] Rdg2 wäre nun fies.} Ne8 {[%emt 0:00:40]} 34. Rdg2 {[%emt 0:00:02][%cal Og2g7] Beabsichtigt Rxg7! und Matt.} Qc7 {[%emt 0:00:25] [#]} (34... Bf7 35. Bd3 Qe6) 35. Rxg7 $3 {[%emt 0:00:22][%mdl 512]} Qxg7 {[%emt 0:00:10]} 36. Rxg7 {[%emt 0:00:02]} Kxg7 {[%emt 0:00:01]} 37. Qe5 {[%emt 0:00:25]} Bf7 {[%emt 0:00:20]} 38. Bb3 {[%emt 0:00:13]} d4 {[%emt 0:00:34]} 39. Bxf7 {[%emt 0:00:21]} Kxf7 {[%emt 0:00:01]} 40. cxd4 {[%emt 0:00:14][%cal Bc3d4,Bd4d5][%mdl 4128] Endspiel. KQ-KRN} (40. exd4 $2 {verliert.} Re6 41. Ke2 Rxe5+ 42. fxe5 Ng7 $19) 40... a5 {[%emt 0:00:10]} 41. d5 {[%emt 0:00:11]} Nd6 {[%emt 0:00:08]} 42. e4 {[%emt 0:00:23][%cal Be3e4,Be4e5][%mdl 32]} Ne8 {[%emt 0:00:06]} 43. Kd2 {[%emt 0:00:08]} Nd6 {[%emt 0:00:21]} 44. Kd3 {[%emt 0:00:03] jetzt Qc3 und aus.} Ne8 {[%emt 0:00:02]} 45. Qb8 {[%emt 0:00:03] Weiß setzt Matt.} Rd6 {[%emt 0:00:14]} 46. Qb7+ {[%emt 0:00:11]} Kf8 {[%emt 0:00:19]} 47. e5 {[%emt 0:00:04]} Rd8 {[%emt 0:00:01]} 48. Ke4 {[%emt 0:00:08]} Rd6 {[%emt 0:00:20]} 49. Qh7 {[%emt 0:00:18]} (49. exd6 $2 {ist das falsche Schlagen.} Nxd6+ 50. Ke5 Nxb7 $19) 49... Rd8 {[%emt 0:00:02]} 50. Qxh6+ {[%emt 0:00:01]} Ng7 {[%emt 0:00:03]} 51. Qf6+ {[%emt 0:00:02] Gewichteter Fehlerwert: Weiß=0.23 (präzise) /Schwarz=0.58.  Gewinn verpasst:   	Weiß=1     	---        Fehler:       	Weiß=4     	Schwarz=9     Ungenau:       	---       	Schwarz=2     OK:         	Weiß=10    	Schwarz=10    Bester:       	Weiß=1     	Schwarz=3     Stark:        	Weiß=1     	---} 1-0